bitfinex/quotes_SOLUSD_20250907
["timestamp","ask_amount","ask_price","bid_price","bid_amount"]
[1757212455835,2.52580026,202.54,202.52,0.71]
[1757212456035,2.52580026,202.54,202.53,0.71]
[1757212457230,2.52580026,202.54,202.51,3.67193479]
[1757212457427,13.59559401,202.57,202.51,0.71]
[1757212457428,2.52580026,202.52,202.51,0.71]
[1757212458450,2.52580026,202.52,202.49,0.71]
[1757212458653,2.52580026,202.52,202.5,4.3823239]
[1757212458955,2.52580026,202.52,202.5,0.71]
[1757212459475,2.52580026,202.52,202.5,4.38245368]
[1757212459638,2.52580026,202.52,202.5,0.71]
[1757212459835,2.52580026,202.51,202.5,0.71]
[1757212460553,2.52580026,202.51,202.5,4.38328542]
[1757212460860,5.6271349,202.55,202.5,0.71]
[1757212461171,2.52580026,202.52,202.5,4.38328542]
[1757212461361,2.52580026,202.52,202.5,0.71]
[1757212461660,2.52580026,202.51,202.49,3.67387861]
[1757212461958,2.52580026,202.5,202.47,0.8]
[1757212462341,2.52580026,202.5,202.48,3.67421487]
[1757212462660,132.3,202.52,202.48,4.35421487]
[1757212462983,2.52580026,202.5,202.48,0.68]
[1757212465347,0.67,202.5,202.49,3.67483342]
[1757212465544,3.19580026,202.5,202.47,0.12]
[1757212465747,2.52580026,202.48,202.47,0.12]
[1757212465959,18.53371189,202.51,202.48,0.68]
[1757212465960,2.52580026,202.51,202.48,0.68]
[1757212466137,132.3,202.52,202.49,4.35496331]
[1757212466335,132.3,202.52,202.5,0.68]
[1757212466538,132.3,202.52,202.51,0.68]
[1757212470363,132.3,202.52,202.49,5.61837919]
[1757212470669,134.82580026,202.52,202.5,4.35645914]
[1757212470870,134.82580026,202.52,202.5,0.68]
[1757212471078,2.52580026,202.51,202.47,0.12]
[1757212471244,2.52580026,202.51,202.48,4.35664778]
[1757212471444,2.52580026,202.51,202.49,4.35664778]
[1757212471672,2.52580026,202.51,202.49,0.68]
[1757212471838,2.52580026,202.51,202.47,38.14]
[1757212472044,2.52580026,202.5,202.48,3.67710572]
[1757212472342,2.52580026,202.5,202.49,3.67710572]
[1757212473871,2.52580026,202.5,202.49,3.67817631]
[1757212477754,3.19580026,202.5,202.49,3.67817631]
[1757212477941,2.52580026,202.5,202.49,3.67817631]
[1757212479568,3.95226973,202.5,202.49,3.67817631]
[1757212480547,26.0,202.54,202.49,4.35817631]
[1757212480752,3.95226973,202.53,202.5,4.35817631]
[1757212481065,3.95226973,202.53,202.51,0.68]
[1757212481679,3.95226973,202.52,202.51,0.68]
[1757212481972,3.95226973,202.52,202.51,4.36366908]
[1757212484553,3.95226973,202.52,202.51,3.68366908]
[1757212486658,3.98226973,202.52,202.51,3.68366908]
[1757212486970,0.03,202.52,202.51,3.68366908]
[1757212487173,3.98226973,202.52,202.51,3.68366908]
[1757212487756,3.98226973,202.52,202.51,4.36366908]
[1757212488078,3.98226973,202.52,202.51,4.37054022]
[1757212489376,3.98226973,202.52,202.51,7.25224082]
[1757212489773,0.03,202.52,202.51,7.25224082]
[1757212489968,3.98226973,202.52,202.51,7.25224082]
[1757212491066,0.03,202.52,202.51,7.25224082]
[1757212491880,0.03,202.52,202.51,12.19026857]
[1757212492468,0.03,202.52,202.51,7.25224082]
[1757212496785,0.03,202.52,202.51,6.57224082]
[1757212497486,4.64226973,202.52,202.51,6.57224082]
[1757212497687,4.64226973,202.52,202.51,2.8817006]
[1757212497890,4.64226973,202.52,202.51,6.5779467]
[1757212498991,3.98226973,202.52,202.51,6.57887547]
[1757212500397,0.03,202.52,202.51,7.29887547]
[1757212500997,4.64226973,202.52,202.51,6.57887547]
[1757212503123,18.23786374,202.52,202.51,6.57887547]
[1757212503424,18.23786374,202.52,202.51,3.69717487]
[1757212503927,23.17564766,202.52,202.51,3.69717487]
[1757212507310,61.11564766,202.52,202.51,3.69717487]
[1757212508628,18.23786374,202.52,202.51,3.69717487]
[1757212508833,55.51786374,202.52,202.51,3.69717487]
[1757212510060,56.17786374,202.52,202.51,3.69717487]
[1757212510855,18.23786374,202.52,202.51,3.69717487]
[1757212511776,23.17564766,202.52,202.51,3.69717487]
[1757212519338,13.59559401,202.51,202.48,0.72]
[1757212519539,13.59559401,202.51,202.49,6.57832542]
[1757212519740,13.59559401,202.51,202.5,3.69689654]
[1757212520453,17.54786374,202.51,202.5,3.69689654]
[1757212523827,29.95226973,202.51,202.5,4.39689654]
[1757212525161,162.25226973,202.51,202.5,4.39689654]
[1757212526255,162.25226973,202.51,202.5,7.27766318]
[1757212526953,158.3,202.51,202.5,7.27766318]
[1757212527550,158.3,202.51,202.5,12.21593478]
[1757212527551,132.3,202.51,202.5,12.21593478]
[1757212528236,0.03,202.52,202.5,12.21593478]
[1757212528436,0.03,202.52,202.51,7.27766318]
[1757212528852,0.03,202.52,202.51,12.21569093]
[1757212530656,4.64226973,202.52,202.51,6.57766318]
[1757212531059,23.17564766,202.52,202.51,6.57766318]
[1757212531230,23.17564766,202.52,202.51,3.69689654]
[1757212534273,27.12791739,202.52,202.51,3.69689654]
[1757212534463,13.59559401,202.49,202.47,0.12]
[1757212534666,13.59559401,202.49,202.48,3.69628063]
[1757212534667,51.49559401,202.49,202.48,3.69628063]
[1757212534851,52.15559401,202.49,202.48,3.69628063]
[1757212535863,61.04637922,202.49,202.48,3.69628063]
[1757212539454,59.62487515,202.49,202.48,3.69628063]
[1757212543068,13.59559401,202.48,202.47,0.12]
[1757212543269,16.12635967,202.48,202.47,3.81643963]
[1757212543460,175.08635967,202.48,202.47,3.81643963]
[1757212544057,180.02511905,202.48,202.47,3.81643963]
[1757212544466,154.02511905,202.48,202.47,3.81643963]
[1757212545252,154.02511905,202.48,202.47,0.12]
[1757212546678,191.24511905,202.48,202.47,0.12]
[1757212547366,191.24511905,202.48,202.47,3.81457772]
[1757212548075,191.24511905,202.48,202.47,3.81435028]
[1757212548277,191.24511905,202.48,202.47,4.51435028]
[1757212548779,191.24511905,202.48,202.47,3.81435028]
[1757212548974,58.94511905,202.48,202.47,3.81435028]
[1757212550465,54.00635967,202.48,202.47,4.52435028]
[1757212552379,58.94511905,202.48,202.47,3.81435028]
[1757212552585,59.66511905,202.48,202.47,3.81435028]
[1757212552762,59.66511905,202.48,202.47,0.12]
[1757212552967,58.94511905,202.48,202.47,0.12]
[1757212557088,58.97511905,202.48,202.47,0.12]
[1757212557386,58.97511905,202.48,202.47,3.81264241]
[1757212558392,58.97511905,202.48,202.47,4.52264241]
[1757212560372,84.97511905,202.48,202.47,4.52264241]
[1757212561794,84.97511905,202.48,202.47,3.81264241]
[1757212563491,84.97511905,202.48,202.47,4.52264241]
[1757212563694,84.97511905,202.48,202.47,3.81264241]
[1757212563890,85.69511905,202.48,202.47,3.81264241]
[1757212565899,84.97511905,202.48,202.47,3.81264241]
[1757212566702,85.69511905,202.48,202.47,3.81264241]
[1757212566871,85.69511905,202.48,202.47,0.12]
[1757212567792,47.09511905,202.48,202.47,0.83]
[1757212568096,84.93511905,202.48,202.47,0.83]
[1757212568402,84.93511905,202.48,202.47,0.12]
[1757212569894,84.93511905,202.48,202.47,0.83]
[1757212570997,84.93511905,202.48,202.47,0.12]
[1757212571496,84.93511905,202.48,202.47,3.81316083]
[1757212571813,84.93511905,202.48,202.47,0.12]
[1757212574404,84.93511905,202.48,202.47,3.81626164]
[1757212577788,85.65511905,202.48,202.47,3.81626164]
[1757212578204,84.93511905,202.48,202.47,3.81626164]
[1757212578603,85.65511905,202.48,202.47,3.81626164]
[1757212580402,84.93511905,202.48,202.47,3.81626164]
[1757212580788,85.58511905,202.48,202.47,3.81626164]
[1757212582010,84.93511905,202.48,202.47,3.81626164]
[1757212582811,85.58511905,202.48,202.47,3.81626164]
[1757212587896,84.93511905,202.48,202.47,3.81626164]
[1757212590119,84.93511905,202.48,202.47,3.82337735]
[1757212592119,82.40435339,202.48,202.47,3.82337735]
[1757212592429,84.93511905,202.48,202.47,3.82337735]
[1757212596514,88.7584964,202.48,202.47,3.82337735]
[1757212601431,86.22773074,202.48,202.47,3.82337735]
[1757212601614,90.1819794,202.48,202.47,3.82337735]
[1757212611420,48.38773074,202.48,202.47,3.82337735]
[1757212611730,90.1419794,202.48,202.47,3.82337735]
[1757212616230,90.8119794,202.48,202.47,3.82337735]
[1757212616614,90.8119794,202.48,202.47,0.12]
[1757212616615,64.8119794,202.48,202.47,0.12]
[1757212620037,27.0119794,202.48,202.47,0.12]
[1757212620228,64.1419794,202.48,202.47,0.12]
[1757212621824,64.8119794,202.48,202.47,0.12]
[1757212623043,64.1419794,202.48,202.47,0.12]
[1757212623846,64.8119794,202.48,202.47,0.12]
[1757212628251,43.54984267,202.45,202.44,0.12]
[1757212628429,55.32984267,202.45,202.44,4.52020675]
[1757212628633,55.32984267,202.45,202.44,0.82]
[1757212628853,59.85004942,202.45,202.44,0.82]
[1757212629271,59.85004942,202.45,202.44,0.12]
[1757212630158,59.85004942,202.45,202.44,0.82]
[1757212630339,64.78954065,202.45,202.44,0.82]
[1757212630738,64.78954065,202.45,202.44,0.12]
[1757212634168,60.83529199,202.45,202.44,0.12]
[1757212634343,64.78954065,202.45,202.44,0.12]
[1757212636461,64.78954065,202.45,202.44,0.82]
[1757212637159,64.78954065,202.45,202.44,0.12]
[1757212637749,64.78954065,202.45,202.44,0.82]
[1757212640764,64.78954065,202.45,202.44,0.12]
[1757212652359,65.50954065,202.45,202.44,0.12]
[1757212652756,65.50954065,202.45,202.42,0.12]
[1757212652757,13.59559401,202.43,202.42,0.12]
[1757212652956,55.32984267,202.43,202.42,0.12]
[1757212653158,56.04984267,202.43,202.42,0.12]
[1757212653361,62.96801237,202.43,202.42,0.12]
[1757212658153,59.01376371,202.43,202.42,0.12]
[1757212658358,62.96801237,202.43,202.42,0.12]
[1757212660467,21.50409133,202.42,202.41,0.12]
[1757212660964,22.22409133,202.42,202.41,0.12]
[1757212661270,24.20237961,202.42,202.41,0.12]
[1757212661475,33.89961078,202.42,202.41,0.12]
[1757212667079,33.17961078,202.42,202.41,0.12]
[1757212669166,33.84961078,202.42,202.41,0.12]
[1757212670166,39.59559401,202.4,202.39,0.12]
[1757212670476,90.04109921,202.4,202.39,0.12]
[1757212670676,94.98181067,202.4,202.39,0.12]
[1757212671072,96.9601968,202.4,202.39,0.12]
[1757212685786,97.6301968,202.4,202.39,0.12]
[1757212686110,13.59559401,202.39,202.37,0.12]
[1757212686291,53.90869505,202.38,202.37,0.12]
[1757212686492,54.57869505,202.38,202.37,0.12]
[1757212686881,56.55737477,202.38,202.37,0.12]
[1757212688706,56.55737477,202.38,202.34,0.12]
[1757212688707,13.59559401,202.37,202.34,0.12]
[1757212688916,16.12869505,202.37,202.34,0.12]
[1757212689083,16.79869505,202.37,202.34,0.12]
[1757212689392,151.07747266,202.37,202.34,0.12]
[1757212689714,150.40747266,202.37,202.34,0.78]
[1757212690003,155.34891654,202.37,202.34,0.78]
[1757212690217,155.34891654,202.37,202.36,1e-08]
[1757212690998,193.12891654,202.37,202.36,0.66000001]
[1757212691201,191.15013893,202.37,202.36,0.66000001]
[1757212691376,58.85013893,202.37,202.36,0.66000001]
[1757212691905,16.12869505,202.37,202.36,0.66000001]
[1757212692087,58.85013893,202.37,202.36,4.35387862]
[1757212693001,40.31310104,202.4,202.36,4.35387862]
[1757212693201,40.31310104,202.4,202.37,4.35387861]
[1757212693409,66.31310104,202.4,202.38,4.35387861]
[1757212693603,79.90869505,202.4,202.39,4.35387861]
[1757212694602,4.35387862,202.43,202.39,4.35387861]
[1757212694901,13.62559401,202.42,202.4,7.22657557]
[1757212695106,39.62559401,202.42,202.41,4.35387861]
[1757212697489,39.62559401,202.42,202.41,9.29528212]
[1757212698005,13.62559401,202.42,202.41,9.29528212]
[1757212699212,13.62559401,202.42,202.41,12.16776703]
[1757212699610,13.62559401,202.42,202.41,9.29520263]
[1757212700508,0.03,202.42,202.41,9.29520263]
[1757212705324,2.56310104,202.42,202.41,9.29520263]
[1757212705498,2.56310104,202.42,202.41,4.35379912]
[1757212705904,0.03,202.42,202.41,4.35379912]
[1757212706108,3.27310104,202.42,202.41,3.69379912]
[1757212706319,2.56310104,202.42,202.41,3.69379912]
[1757212706709,7.50332433,202.42,202.41,3.69379912]
[1757212706929,21.09891834,202.42,202.41,3.69074543]
[1757212708527,0.03,202.42,202.41,4.41074543]
[1757212709216,0.03,202.42,202.41,13.70594806]
[1757212716330,0.03,202.42,202.41,4.41074543]
[1757212716716,0.03,202.42,202.41,6.97384647]
[1757212717228,0.03,202.42,202.41,14.78152408]
[1757212718325,0.03,202.42,202.41,11.91431383]
[1757212718828,0.03,202.42,202.41,14.78082216]
[1757212723434,0.03,202.42,202.41,14.78082216]
[1757212738030,0.03,202.42,202.41,14.78086607]
[1757212739331,0.03,202.42,202.41,14.78400947]
[1757212745452,0.03,202.42,202.41,14.78423817]
[1757212749058,0.03,202.42,202.41,11.09012064]
[1757212749232,0.03,202.42,202.41,14.78438884]
[1757212751849,0.03,202.45,202.44,26.0]
[1757212752044,0.03,202.6,202.44,71.48479396]
[1757212752246,3.98351758,202.58,202.45,7.25082044]
[1757212752454,3.98351758,202.58,202.49,26.0]
[1757212752755,3.98351758,202.58,202.5,44.34082044]
[1757212753056,3.98351758,202.58,202.51,6.56082044]
[1757212753255,3.98351758,202.58,202.52,6.56082044]
[1757212753458,3.98351758,202.58,202.53,6.56082044]
[1757212753644,3.98351758,202.58,202.54,6.56082044]
[1757212753844,3.98351758,202.58,202.55,6.56082044]
[1757212754060,4.38351758,202.58,202.56,3.6942682]
[1757212754240,0.03,202.58,202.56,3.6942682]
[1757212754449,4.38351758,202.58,202.56,3.6942682]
[1757212754846,3.98351758,202.58,202.56,3.6942682]
[1757212755238,4.38351758,202.58,202.56,3.6942682]
[1757212755443,3.98351758,202.58,202.56,3.6942682]
[1757212758658,3.98351758,202.57,202.56,3.6942682]
[1757212759557,136.28351758,202.57,202.56,3.6942682]
[1757212762462,136.28351758,202.57,202.56,3.8142682]
[1757212762842,132.33,202.57,202.56,3.8142682]
[1757212763046,136.28351758,202.57,202.56,3.8142682]
[1757212763268,132.33,202.57,202.56,3.8142682]
[1757212765350,132.33,202.57,202.56,4.5142682]
[1757212765662,132.33,202.57,202.56,19.33457202]
[1757212770681,132.33,202.57,202.56,19.31411726]
[1757212771366,132.33,202.57,202.56,24.2509261]
[1757212772272,132.33,202.57,202.56,24.2504152]
[1757212774491,132.33,202.57,202.56,61.9704152]
[1757212777956,132.33,202.57,202.56,57.03360636]
[1757212788981,132.33,202.57,202.56,19.31360636]
[1757212789162,132.33,202.57,202.56,57.03360636]
[1757212790289,132.33,202.57,202.56,59.90224904]
[1757212794380,135.2567593,202.57,202.56,6.66194522]
[1757212796786,134.8567593,202.57,202.56,6.66194522]
[1757212797196,132.33,202.57,202.56,45.08194522]
[1757212797371,126.15797558,202.57,202.56,59.90151694]
[1757212797572,126.15797558,202.57,202.56,64.86030359]
[1757212797972,0.03,202.58,202.56,64.86030359]
[1757212798184,0.03,202.58,202.57,7.26392303]
[1757212798573,0.03,202.58,202.57,22.08276272]
[1757212799790,0.03,202.58,202.57,27.01932785]
[1757212801704,0.03,202.58,202.57,22.08276272]
[1757212801877,0.03,202.58,202.57,59.80276272]
[1757212802196,0.03,202.58,202.57,59.10276272]
[1757212802706,0.03,202.58,202.57,21.38276272]
[1757212802911,2.9567593,202.58,202.57,6.56392303]
[1757212805296,0.03,202.58,202.57,6.56392303]
[1757212805595,2.5567593,202.58,202.57,6.56392303]
[1757212813299,2.5567593,202.58,202.57,6.68392303]
[1757212814999,2.5567593,202.58,202.57,7.38392303]
[1757212822108,0.03,202.58,202.57,7.38392303]
[1757212827414,0.03,202.58,202.57,7.38768751]
[1757212829195,16.55235331,202.58,202.57,6.68768751]
[1757212829399,42.55235331,202.58,202.57,3.81904483]
[1757212830288,16.55235331,202.58,202.57,3.81904483]
[1757212830489,13.59559401,202.56,202.54,0.12]
[1757212830694,58.75940588,202.55,202.54,0.12]
[1757212830894,13.59559401,202.54,202.53,0.12]
[1757212831095,16.12235331,202.54,202.53,0.12]
[1757212831305,16.52235331,202.54,202.53,0.12]
[1757212831911,21.45964964,202.54,202.53,0.12]
[1757212833218,26.0,202.51,202.47,2.87374455]
[1757212833416,13.59559401,202.46,202.43,0.66]
[1757212833595,13.59559401,202.46,202.44,2.87219243]
[1757212833803,13.59559401,202.46,202.43,0.66]
[1757212834003,13.59559401,202.46,202.44,2.8721995]
[1757212834303,13.59559401,202.46,202.41,0.66]
[1757212834501,13.59559401,202.46,202.42,3.52974918]
[1757212834825,13.59559401,202.46,202.43,2.86974918]
[1757212835031,13.59559401,202.46,202.42,0.66]
[1757212835215,4.93949123,202.45,202.43,2.86974883]
[1757212835424,4.93949123,202.45,202.42,0.66]
[1757212835599,4.93949123,202.45,202.43,2.8677976]
[1757212836120,2.5267593,202.44,202.43,2.8677976]
[1757212836328,4.93949123,202.45,202.43,0.66]
[1757212836624,2.5267593,202.44,202.43,0.66]
[1757212839625,134.8267593,202.44,202.43,0.66]
[1757212841620,132.3,202.44,202.43,0.66]
[1757212841823,134.8267593,202.44,202.43,0.66]
[1757212843710,132.3,202.44,202.43,0.66]
[1757212843917,134.8267593,202.44,202.43,0.66]
[1757212845516,136.25430883,202.44,202.43,0.66]
[1757212847029,132.3,202.44,202.43,0.66]
[1757212847233,136.25430883,202.44,202.43,0.66]
[1757212848525,13.59559401,202.43,202.4,0.66]
[1757212848827,3.95430883,202.41,202.4,0.66]
[1757212849225,3.95430883,202.41,202.4,0.12]
[1757212849622,3.95430883,202.41,202.4,0.77]
[1757212850305,3.95430883,202.41,202.4,0.12]
[1757212852631,42.72025336,202.42,202.4,0.12]
[1757212852807,3.95430883,202.41,202.4,0.77]
[1757212854342,42.72025336,202.42,202.4,0.77]
[1757212854517,3.95430883,202.41,202.4,0.77]
[1757212855038,3.95430883,202.41,202.4,0.12]
[1757212855926,3.95430883,202.41,202.4,0.77]
[1757212860646,22.4903702,202.41,202.4,0.77]
[1757212860819,22.4903702,202.41,202.4,0.12]
[1757212863551,22.8903702,202.41,202.4,0.12]
[1757212864629,22.4903702,202.41,202.4,0.12]
[1757212864833,22.8903702,202.41,202.4,0.12]
[1757212867143,22.4903702,202.41,202.4,0.12]
[1757212867449,22.8903702,202.41,202.4,0.12]
[1757212867951,22.4903702,202.41,202.4,0.12]
[1757212868444,22.8903702,202.41,202.4,0.12]
[1757212870935,26.84467903,202.41,202.4,0.12]
[1757212871247,28.82316302,202.41,202.4,0.12]
[1757212875552,20.51454536,202.41,202.4,0.77]
[1757212875732,60.2503702,202.41,202.4,0.77]
[1757212876355,60.2503702,202.41,202.4,0.12]
[1757212877839,66.18286948,202.41,202.4,0.12]
[1757212878158,66.58286948,202.41,202.4,0.12]
[1757212883062,66.18286948,202.41,202.4,0.12]
[1757212883840,66.58286948,202.41,202.4,0.12]
[1757212884035,66.18286948,202.41,202.4,0.12]
[1757212885940,62.22856065,202.41,202.4,0.81]
[1757212886141,60.2503702,202.41,202.4,0.81]
[1757212891555,22.4903702,202.41,202.4,0.81]
[1757212891851,60.2503702,202.41,202.4,0.81]
[1757212894948,48.4903702,202.41,202.4,0.81]
[1757212895154,86.2503702,202.41,202.4,0.81]
[1757212895666,81.30990284,202.41,202.4,0.81]
[1757212897661,86.2503702,202.41,202.4,0.81]
[1757212897861,86.2503702,202.41,202.4,0.12]
[1757212898245,88.22846283,202.41,202.4,0.12]
[1757212900566,92.58277166,202.41,202.4,0.12]
[1757212901770,66.58277166,202.41,202.4,0.12]
[1757212906067,66.18277166,202.41,202.4,0.12]
[1757212907478,70.94017125,202.41,202.4,0.12]
[1757212910751,33.18017125,202.41,202.4,0.12]
[1757212910975,70.94017125,202.41,202.4,0.12]
[1757212914174,74.63019958,202.41,202.4,0.12]
[1757212915286,70.94017125,202.41,202.4,0.12]
[1757212919185,39.59559401,202.38,202.32,0.78]
[1757212919380,39.59559401,202.34,202.32,0.78]
[1757212919581,79.92879746,202.34,202.32,0.12]
[1757212919780,81.90777087,202.34,202.32,0.12]
[1757212921090,86.8499474,202.34,202.32,0.12]
[1757212926296,13.59559401,202.33,202.32,0.12]
[1757212926498,16.12879746,202.33,202.32,0.12]
[1757212926998,18.1079667,202.33,202.32,0.12]
[1757212928502,23.05038749,202.33,202.32,0.12]
[1757212929602,23.05038749,202.33,202.32,0.78]
[1757212930501,23.05038749,202.33,202.32,0.12]
[1757212931206,23.05038749,202.33,202.32,0.78]
[1757212933908,20.51718404,202.33,202.32,0.78]
[1757212934211,23.05038749,202.33,202.32,0.78]
[1757212936702,23.05038749,202.33,202.32,0.12]
[1757212937204,23.05038749,202.33,202.31,0.69980333]
[1757212937400,172.63320345,202.32,202.31,0.69980333]
[1757212937581,172.63320345,202.32,202.31,0.03980333]
[1757212937780,186.22879746,202.32,202.31,0.03980333]
[1757212937989,198.34058467,202.32,202.31,0.03980333]
[1757212939198,203.28324975,202.32,202.31,0.03980333]
[1757212943289,70.98324975,202.32,202.31,0.03980333]
[1757212944914,71.38324975,202.32,202.31,0.03980333]
[1757212946100,13.59559401,202.31,202.3,0.12]
[1757212946301,26.26161126,202.31,202.3,0.12]
[1757212946503,26.66161126,202.31,202.3,0.12]
[1757212946702,28.24097638,202.31,202.3,0.12]
[1757212947400,33.18388577,202.31,202.3,0.12]
[1757212948111,33.18388577,202.31,202.29,0.12]
[1757212948309,64.06161126,202.3,202.29,0.12]
[1757212948811,66.04107433,202.3,202.29,0.12]
[1757212949197,66.04107433,202.3,202.29,0.83]
[1757212949599,70.98422806,202.3,202.29,0.83]
[1757212952418,70.98422806,202.3,202.29,0.12]
[1757212953620,70.98422806,202.3,202.29,0.83]
[1757212959119,70.96422806,202.3,202.29,0.83]
[1757212965523,33.18422806,202.3,202.29,0.83]
[1757212965731,70.96422806,202.3,202.29,0.83]
[1757212968917,70.96422806,202.3,202.29,0.12]
[1757212969331,20.51821081,202.3,202.29,0.82]
[1757212969530,66.22240935,202.3,202.29,0.82]
[1757212970231,66.22240935,202.3,202.29,0.12]
[1757212974125,66.25240935,202.3,202.29,0.12]
[1757212976340,28.47240935,202.3,202.29,0.12]
[1757212976548,66.25240935,202.3,202.29,0.12]
[1757212986556,66.25240935,202.3,202.27,0.12]
[1757212986557,13.59559401,202.28,202.27,0.12]
[1757212986860,55.33769328,202.28,202.27,0.12]
[1757212987239,57.31715635,202.28,202.27,0.12]
[1757212987755,19.53715635,202.28,202.27,0.82]
[1757212988059,81.33769328,202.28,202.27,7.39791046]
[1757212989861,86.28133575,202.28,202.27,7.39791046]
[1757212990054,86.28133575,202.28,202.27,4.50377633]
[1757212992040,86.28133575,202.28,202.27,4.5248781]
[1757212992244,86.28133575,202.28,202.27,3.8248781]
[1757212992458,90.80621385,202.28,202.27,3.8248781]
[1757212993261,64.80621385,202.28,202.27,3.8248781]
[1757212994264,64.80621385,202.28,202.27,0.12]
[1757212996865,64.80621385,202.28,202.24,0.12]
[1757212996866,13.59559401,202.27,202.24,0.12]
[1757212997071,43.55769328,202.25,202.24,0.12]
[1757212997566,46.13970154,202.25,202.24,0.12]
[1757212998165,46.13970154,202.25,202.22,0.1]
[1757212998166,13.59559401,202.24,202.22,0.1]
[1757212998369,55.33769328,202.23,202.22,0.1]
[1757212998667,55.33769328,202.23,202.22,3.80229442]
[1757212998875,57.31774427,202.23,202.22,3.80229442]
[1757212999172,57.31774427,202.23,202.22,4.47229442]
[1757212999356,57.31774427,202.23,202.22,0.77]
[1757212999558,57.31774427,202.23,202.22,4.47111235]
[1757213000189,62.26260902,202.23,202.22,0.77]
[1757213003355,62.26260902,202.23,202.22,0.1]
[1757213003957,62.26260902,202.23,202.22,0.77]
[1757213004161,62.26260902,202.23,202.22,0.1]
[1757213005380,62.26260902,202.23,202.22,0.77]
[1757213013682,22.50255803,202.23,202.22,0.77]
[1757213013889,60.28255803,202.23,202.22,4.46498388]
[1757213015590,22.50255803,202.23,202.22,4.46498388]
[1757213015765,60.28255803,202.23,202.22,4.46498388]
[1757213016389,22.50255803,202.23,202.22,4.46498388]
[1757213016692,60.28255803,202.23,202.22,4.46498388]
[1757213016880,22.50255803,202.23,202.22,4.46498388]
[1757213017084,17.55769328,202.23,202.22,4.46498388]
[1757213017286,51.37559401,202.24,202.22,7.34253865]
[1757213017468,8.45708315,202.28,202.23,4.36498388]
[1757213017667,8.45708315,202.28,202.22,0.1]
[1757213017668,0.03,202.28,202.24,7.24204274]
[1757213017989,0.03,202.28,202.25,7.24204274]
[1757213017990,26.03,202.28,202.25,7.24204274]
[1757213018169,26.0,202.27,202.26,7.24204274]
[1757213018581,0.03,202.28,202.26,7.24204274]
[1757213018781,0.03,202.28,202.27,7.24204274]
[1757213019080,0.03,202.28,202.27,12.18592962]
[1757213019486,26.03,202.28,202.27,12.18592962]
[1757213020406,0.03,202.28,202.27,12.18592962]
[1757213025885,0.03,202.28,202.27,16.14802889]
[1757213028706,0.03,202.28,202.27,13.27097003]
[1757213047802,0.03,202.28,202.27,16.13850023]
[1757213064339,0.03,202.28,202.27,53.89850023]
[1757213078048,0.03,202.28,202.27,53.90965236]
[1757213079337,0.03,202.28,202.27,53.91583063]
[1757213079538,0.03,202.3,202.27,53.91583063]
[1757213079851,0.03,202.3,202.28,7.28984448]
[1757213080031,0.03,202.3,202.29,44.31984448]
[1757213080350,0.03,202.3,202.29,45.02984448]
[1757213080844,0.03,202.3,202.29,49.97324257]
[1757213081348,0.03,202.3,202.29,51.95153085]
[1757213100053,0.03,202.3,202.29,51.95012102]
[1757213104354,1e-08,202.31,202.29,52.44446082]
[1757213104554,1e-08,202.31,202.3,7.29843465]
[1757213105168,1e-08,202.31,202.3,11.16594983]
[1757213105481,1e-08,202.31,202.3,13.14374904]
[1757213106090,1e-08,202.31,202.3,18.08690277]
[1757213112262,1e-08,202.31,202.3,14.21938759]
[1757213114168,1e-08,202.31,202.3,18.16201189]
[1757213114387,0.03,202.33,202.32,26.0]
[1757213114688,0.03,202.33,202.32,70.29843465]
[1757213114894,0.03,202.33,202.32,71.01843465]
[1757213115078,0.03,202.33,202.32,75.85486536]
[1757213115478,0.03,202.33,202.32,82.77523186]
[1757213121477,0.03,202.33,202.32,79.07547954]
[1757213121684,0.03,202.33,202.32,83.2653992]
[1757213127106,0.03,202.34,202.32,83.2653992]
[1757213127396,0.03,202.34,202.33,7.26433549]
[1757213127778,1e-08,202.35,202.33,9.24203691]
[1757213127977,1e-08,202.35,202.34,71.47855314]
[1757213128393,1e-08,202.35,202.34,73.4558635]
[1757213128597,1e-08,202.38,202.37,26.0]